Workbook

Sheet Data
A1: Optælling / Gruppering | F1: start | G1: slut | H1: Interval længde
A2: Vælg: | C2: Datasæt 1 | N2: Datasæt 1
A3: Rå data | C3: Ugrupperet optælling | N3: Datasæt 2
A4: Obs. | B4: =COUNT(A:A) -> 5 | C4: Obs. | D4: Hyppighed | E4: =COUNT(C:C) -> 5 | I4: =COUNT(F:F)-COUNT(F1:F3) -> 0 | L4: =$F$5 -> 0 | M4: 0 | N4: Datasæt 3
A5: 2 | C5: 2 | D5: 1 | J5: 2 | K5: 1 | L5: =$F$5 -> 0 | M5: =$H$5/($G$5-$F$5) ->  | N5: Datasæt 4
A6: 4 | C6: 3 | D6: 1 | J6: 3 | K6: 1 | L6: =$G$5 -> 0 | M6: =$H$5/($G$5-$F$5) ->  | N6: Datasæt 5
A7: 8 | C7: 4 | D7: 1 | J7: 4 | K7: 1 | L7: =$G$5 -> 0 | M7: 0 | N7: Datasæt 6
A8: 6 | C8: 6 | D8: 1 | J8: 6 | K8: 1 | L8: =$F$6 -> 0 | M8: 0 | N8: Datasæt 7
A9: 3 | C9: 8 | D9: 1 | J9: 8 | K9: 1 | L9: =$F$6 -> 0 | M9: =$H$6/($G$6-$F$6) ->  | N9: Datasæt 8
J10: 7 | K10: 1 | L10: =$G$6 -> 0 | M10: =$H$6/($G$6-$F$6) ->  | N10: Datasæt 9
J11: 1 | K11: 7 | L11: =$G$6 -> 0 | M11: 0 | N11: Datasæt 10
J12: 1 | K12: 8 | L12: =$F$7 -> 0 | M12: 0
J13: 1 | K13: 9 | L13: =$F$7 -> 0 | M13: =$H$7/($G$7-$F$7) -> 
J14: 1 | K14: 10 | L14: =$G$7 -> 0 | M14: =$H$7/($G$7-$F$7) -> 
J15: 2 | K15: 1 | L15: =$G$7 -> 0 | M15: 0
J16: 2 | K16: 2 | L16: =$F$8 -> 0 | M16: 0
J17: 2 | K17: 3 | L17: =$F$8 -> 0 | M17: =$H$8/($G$8-$F$8) -> 
J18: 2 | K18: 4 | L18: =$G$8 -> 0 | M18: =$H$8/($G$8-$F$8) -> 
J19: 2 | K19: 5 | L19: =$G$8 -> 0 | M19: 0
J20: 2 | K20: 6 | L20: =$F$9 -> 0 | M20: 0
J21: 2 | K21: 7 | L21: =$F$9 -> 0 | M21: =$H$9/($G$9-$F$9) -> 
J22: 3 | K22: 1 | L22: =$G$9 -> 0 | M22: =$H$9/($G$9-$F$9) -> 
J23: 3 | K23: 2 | L23: =$G$9 -> 0 | M23: 0
J24: 3 | K24: 3 | L24: =$F$10 -> 0 | M24: 0
J25: 3 | K25: 4 | L25: =$F$10 -> 0 | M25: =$H$10/($G$10-$F$10) -> 
J26: 3 | K26: 5 | L26: =$G$10 -> 0 | M26: =$H$10/($G$10-$F$10) -> 
J27: 3 | K27: 6 | L27: =$G$10 -> 0 | M27: 0
J28: 3 | K28: 7 | L28: =$F$11 -> 0 | M28: 0
J29: 3 | K29: 8 | L29: =$F$11 -> 0 | M29: =$H$11/($G$11-$F$11) -> 
J30: 4 | K30: 1 | L30: =$G$11 -> 0 | M30: =$H$11/($G$11-$F$11) -> 
J31: 4 | K31: 2 | L31: =$G$11 -> 0 | M31: 0
J32: 4 | K32: 3 | L32: =$F$12 -> 0 | M32: 0
J33: 4 | K33: 4 | L33: =$F$12 -> 0 | M33: =$H$12/($G$12-$F$12) -> 
J34: 4 | K34: 5 | L34: =$G$12 -> 0 | M34: =$H$12/($G$12-$F$12) -> 
J35: 4 | K35: 6 | L35: =$G$12 -> 0 | M35: 0
J36: 4 | K36: 7 | L36: =$F$13 -> 0 | M36: 0
J37: 4 | K37: 8 | L37: =$F$13 -> 0 | M37: =$H$13/($G$13-$F$13) -> 
J38: 4 | K38: 9 | L38: =$G$13 -> 0 | M38: =$H$13/($G$13-$F$13) -> 
J39: 5 | K39: 1 | L39: =$G$13 -> 0 | M39: 0
J40: 5 | K40: 2 | L40: =$F$14 -> 0 | M40: 0
J41: 5 | K41: 3 | L41: =$F$14 -> 0 | M41: =$H$14/($G$14-$F$14) -> 
J42: 5 | K42: 4 | L42: =$G$14 -> 0 | M42: =$H$14/($G$14-$F$14) -> 
J43: 5 | K43: 5 | L43: =$G$14 -> 0 | M43: 0
J44: 6 | K44: 1
J45: 6 | K45: 2
J46: 6 | K46: 3
J47: 6 | K47: 4
J48: 6 | K48: 5
J49: 6 | K49: 6
J50: 6 | K50: 7
J51: 6 | K51: 8
J52: 6 | K52: 9

Sheet Ugrup
A1: Ugrupperede Observationer | E1: Deskriptorer | I1: =2*$A$3-$A$4 -> 0 | J1: 0 | K1: =F3 -> 2 | L1: 0 | M1: 2 | N1: 1 | O1: 2 | P1: 0 | Q1: =INDIRECT("A3") -> 2 | R1: =MAX(INDIRECT("A3:A10000")) -> 4
A2: Obs. | B2: Hyp. | C2: Frekvens | D2: Kum. Frek. | E2: Kvartilsæt | G2: =SUM(INDIRECT("B3:B500")) -> 3 | H2: =INDIRECT("A3") -> 2 | I2: =$A$3 -> 2 | J2: 0 | K2: =F3 -> 2 | L2: 0.25 | M2: 2 | N2: 2 | O2: 2 | P2: 2 | Q2: =$Q$1 -> 2 | R2: 0.4
A3: 2 | B3: 2 | C3: =$B$3/$G$2 -> 0.6666666667 | D3: =$C$3 -> 0.6666666667 | E3: Nedre | F3: 2 | H3: =F3-H2 -> 0 | I3: =$A$3 -> 2 | J3: =$D$3 -> 0.6666666667 | K3: =I1 -> 0 | L3: 0.25 | M3: 4 | N3: 1 | O3: 2 | P3: 0 | Q3: =$Q$1 -> 2 | R3: 0.6
A4: 4 | B4: 1 | C4: =$B$4/$G$2 -> 0.3333333333 | D4: =$C$4+$D$3 -> 1 | E4: Median | F4: 2 | H4: =F4-F3 -> 0 | I4: =$A$4 -> 4 | J4: =$D$3 -> 0.6666666667 | K4: =F4 -> 2 | L4: 0 | M4: 5 | N4: 1 | O4: 4 | P4: 0 | Q4: 2 | R4: 0.5
E5: Øvre | F5: 4 | H5: =F5-F4 -> 2 | I5: =$A$4 -> 4 | J5: =$D$4 -> 1 | K5: =F4 -> 2 | L5: 0.5 | M5: 6 | N5: 1 | O5: 4 | P5: 1 | Q5: =$F$3 -> 2 | R5: 0.5
E6: Obs. Fraktil | H6: =MAX(INDIRECT("A3:A1000"))-F5 -> 0 | I6: =$A$4+($A$4-$A$3)/4*3 -> 5.5 | J6: =$D$4 -> 1 | K6: =I1 -> 0 | L6: 0.5 | M6: 7 | N6: 1 | O6: 4 | P6: 0 | Q6: =$F$3 -> 2 | R6: 0.7
I7: =$A$5 -> 0 | J7: =$D$5 -> 0 | K7: =F5 -> 4 | L7: 0 | M7: 1 | N7: 7 | O7: 4 | P7: 0 | Q7: =$F$4 -> 2 | R7: 0.7
I8: =$A$6 -> 0 | J8: =$D$5 -> 0 | K8: =F5 -> 4 | L8: 0.75 | M8: 1 | N8: 8 | O8: 4 | P8: 1 | Q8: =$F$4 -> 2 | R8: 0.3
E9: Middeltal | F9: =SUMPRODUCT($A$3:$A$4,$B$3:$B$4)/$G$2 -> 2.666666667 | I9: =$A$6 -> 0 | J9: =$D$6 -> 0 | K9: =I1 -> 0 | L9: 0.75 | M9: 1 | N9: 9 | O9: 4 | P9: 0 | Q9: =$F$3 -> 2 | R9: 0.3
E10: Spredning | F10: 0.9428090416 | I10: =$A$7 -> 0 | J10: =$D$6 -> 0 | K10: =E7 -> 0 | L10: 0 | M10: 1 | N10: 10 | O10: 5 | P10: 0 | Q10: =$F$3 -> 2 | R10: 0.7
I11: =$A$7 -> 0 | J11: =$D$7 -> 0 | K11: =E7 -> 0 | L11: =F7 -> 0 | M11: 2 | N11: 1 | O11: 5 | P11: 1 | Q11: =$F$5 -> 4 | R11: 0.7
I12: =$A$8 -> 0 | J12: =$D$7 -> 0 | K12: =I1 -> 0 | L12: =F7 -> 0 | M12: 2 | N12: 2 | O12: 5 | P12: 0 | Q12: =$F$5 -> 4 | R12: 0.3
I13: =$A$8 -> 0 | J13: =$D$8 -> 0 | K13: =E8 -> 0 | L13: 0 | M13: 2 | N13: 3 | O13: 6 | P13: 0 | Q13: =$F$4 -> 2 | R13: 0.3
I14: =$A$8+($A$8-$A$7)/4*3 -> 0 | J14: =$D$8 -> 0 | K14: =E8 -> 0 | L14: =F8 -> 0 | M14: 2 | N14: 4 | O14: 6 | P14: 1 | Q14: =$F$5 -> 4 | R14: 0.3
I15: =$A$9 -> 0 | J15: =$D$9 -> 0 | K15: =I1 -> 0 | L15: =F8 -> 0 | M15: 2 | N15: 5 | O15: 6 | P15: 0 | Q15: =$F$5 -> 4 | R15: 0.5
I16: =$A$9+($A$9-$A$8)/4*3 -> 0 | J16: =$D$9 -> 0 | M16: 2 | N16: 6 | O16: 7 | P16: 0 | Q16: =R1 -> 4 | R16: 0.5
I17: =$A$10 -> 0 | J17: =$D$10 -> 0 | M17: 2 | N17: 7 | O17: 7 | P17: 1 | Q17: =R1 -> 4 | R17: 0.6
I18: =$A$11 -> 0 | J18: =$D$10 -> 0 | M18: 2 | N18: 8 | O18: 7 | P18: 0 | Q18: =R1 -> 4 | R18: 0.4
I19: =$A$11 -> 0 | J19: =$D$11 -> 0 | M19: 2 | N19: 9 | O19: 7 | P19: 0
I20: =$A$11+($A$11-$A$10)/4*3 -> 0 | J20: =$D$11 -> 0 | M20: 3 | N20: 1 | O20: 7 | P20: 2
I21: =$A$12 -> 0 | J21: =$D$12 -> 0 | M21: 3 | N21: 2 | O21: 7 | P21: 0
I22: =$A$13 -> 0 | J22: =$D$12 -> 0 | M22: 3 | N22: 3 | O22: 12 | P22: 0
I23: =$A$13 -> 0 | J23: =$D$13 -> 0 | M23: 3 | N23: 4 | O23: 12 | P23: 1
I24: =$A$14 -> 0 | J24: =$D$13 -> 0 | M24: 3 | N24: 5 | O24: 12 | P24: 0
I25: =$A$14 -> 0 | J25: =$D$14 -> 0 | M25: 3 | N25: 6 | O25: 17 | P25: 0
I26: =$A$14+($A$14-$A$13)/4*3 -> 0 | J26: =$D$14 -> 0 | M26: 3 | N26: 7 | O26: 17 | P26: 1
M27: 3 | N27: 8 | O27: 17 | P27: 0
M28: 4 | N28: 1 | O28: 17 | P28: 0
M29: 4 | N29: 2 | O29: 17 | P29: 2
M30: 4 | N30: 3 | O30: 17 | P30: 0
M31: 4 | N31: 4 | O31: 18 | P31: 0
M32: 4 | N32: 5 | O32: 18 | P32: 1
M33: 4 | N33: 6 | O33: 18 | P33: 0
M34: 4 | N34: 7 | O34: 19 | P34: 0
M35: 4 | N35: 8 | O35: 19 | P35: 1
M36: 4 | N36: 9 | O36: 19 | P36: 0
M37: 5 | N37: 1
M38: 5 | N38: 2
M39: 5 | N39: 3
M40: 5 | N40: 4
M41: 5 | N41: 5
M42: 6 | N42: 1
M43: 6 | N43: 2
M44: 6 | N44: 3
M45: 6 | N45: 4
M46: 6 | N46: 5
M47: 6 | N47: 6
M48: 6 | N48: 7
M49: 6 | N49: 8
M50: 6 | N50: 9

Sheet Grup
A1: Grupperede observationer | F1: Deskriptorer
A2: Interval | C2: =SUM($C$4:$C$500) -> 0 | D2: fi | E2: Fi | F2: Kvartilsæt
A3: Fra | B3: Til | C3: Hyp. | D3: Frekvens | E3: Kumuleret | F3: Mindste | G3: =INDIRECT("A4") -> 0 | I3: 0 | J3: =G4 -> 38.59259259 | K3: 0 | L3: =G3 -> 0
F4: Nedre | G4: 38.59259259 | H4: =$B$4 -> 0 | I4: =$E$4 -> 0 | J4: =G4 -> 38.59259259 | K4: 0.25 | L4: =G4-L3 -> 38.59259259 | M4: =$A$4 -> 0 | N4: 0 | O4: =G3 -> 0 | P4: 0.4
F5: Median | G5: 40.42857143 | H5: =$B$5 -> 0 | I5: =$E$5 -> 0 | J5: =A4 -> 0 | K5: 0.25 | L5: =G5-G4 -> 1.835978836 | M5: =$A$4 -> 0 | N5: =$C$4/($B$4-$A$4) ->  | O5: =G3 -> 0 | P5: 0.6
F6: Øvre | G6: 42.33333333 | H6: =$B$6 -> 0 | I6: =$E$6 -> 0 | J6: =G5 -> 40.42857143 | K6: 0 | L6: =G6-G5 -> 1.904761905 | M6: =$B$4 -> 0 | N6: =$C$4/($B$4-$A$4) ->  | O6: =G3 -> 0 | P6: 0.5
F7: Største | G7: =MAX(INDIRECT("B4:B1000")) -> 0 | H7: =$B$7 -> 0 | I7: =$E$7 -> 0 | J7: =G5 -> 40.42857143 | K7: 0.5 | L7: =G7-G6 -> -42.33333333 | M7: =$B$4 -> 0 | N7: 0 | O7: =G4 -> 38.59259259 | P7: 0.5
F8: Observation Fraktil | H8: =$B$8 -> 0 | I8: =$E$8 -> 0 | J8: =A4 -> 0 | K8: 0.5 | M8: =$A$5 -> 0 | N8: 0 | O8: =G4 -> 38.59259259 | P8: 0.3
H9: =$B$9 -> 0 | I9: =$E$9 -> 0 | J9: =G6 -> 42.33333333 | K9: 0 | M9: =$A$5 -> 0 | N9: =$C$5/($B$5-$A$5) ->  | O9: =G5 -> 40.42857143 | P9: 0.3
H10: =$B$10 -> 0 | I10: =$E$10 -> 0 | J10: =G6 -> 42.33333333 | K10: 0.75 | M10: =$B$5 -> 0 | N10: =$C$5/($B$5-$A$5) ->  | O10: =G5 -> 40.42857143 | P10: 0.7
F11: Middeltal | G11: 40.46 | H11: =$B$11 -> 0 | I11: =$E$11 -> 0 | J11: =A4 -> 0 | K11: 0.75 | M11: =$B$5 -> 0 | N11: 0 | O11: =G4 -> 38.59259259 | P11: 0.7
F12: Spredning | G12: 2.826375771 | H12: =$B$12 -> 0 | I12: =$E$12 -> 0 | J12: =F9 -> 0 | K12: 0 | M12: =$A$6 -> 0 | N12: 0 | O12: =G4 -> 38.59259259 | P12: 0.3
H13: =$B$13 -> 0 | I13: =$E$13 -> 0 | J13: =F9 -> 0 | K13: =G9 -> 0 | M13: =$A$6 -> 0 | N13: =$C$6/($B$6-$A$6) ->  | O13: =G6 -> 42.33333333 | P13: =0.3 -> 0.3
J14: 0 | K14: =G9 -> 0 | M14: =$B$6 -> 0 | N14: =$C$6/($B$6-$A$6) ->  | O14: =G6 -> 42.33333333 | P14: 0.7
J15: =F10 -> 0 | K15: 0 | M15: =$B$6 -> 0 | N15: 0 | O15: =G5 -> 40.42857143 | P15: 0.7
J16: =F10 -> 0 | K16: =G10 -> 0 | M16: =$A$7 -> 0 | N16: 0 | O16: =G6 -> 42.33333333 | P16: 0.7
J17: 0 | K17: =G10 -> 0 | M17: =$A$7 -> 0 | N17: =$C$7/($B$7-$A$7) ->  | O17: =G6 -> 42.33333333 | P17: 0.5
M18: =$B$7 -> 0 | N18: =$C$7/($B$7-$A$7) ->  | O18: =G7 -> 0 | P18: 0.5
M19: =$B$7 -> 0 | N19: 0 | O19: =G7 -> 0 | P19: 0.6
M20: =$A$8 -> 0 | N20: 0 | O20: =G7 -> 0 | P20: 0.4
M21: =$A$8 -> 0 | N21: =$C$8/($B$8-$A$8) -> 
M22: =$B$8 -> 0 | N22: =$C$8/($B$8-$A$8) -> 
M23: =$B$8 -> 0 | N23: 0
M24: =$A$9 -> 0 | N24: 0
M25: =$A$9 -> 0 | N25: =$C$9/($B$9-$A$9) -> 
M26: =$B$9 -> 0 | N26: =$C$9/($B$9-$A$9) -> 
M27: =$B$9 -> 0 | N27: 0
M28: =$A$10 -> 0 | N28: 0
M29: =$A$10 -> 0 | N29: =$C$10/($B$10-$A$10) -> 
M30: =$B$10 -> 0 | N30: =$C$10/($B$10-$A$10) -> 
M31: =$B$10 -> 0 | N31: 0
M32: =$A$11 -> 0 | N32: 0
M33: =$A$11 -> 0 | N33: =$C$11/($B$11-$A$11) -> 
M34: =$B$11 -> 0 | N34: =$C$11/($B$11-$A$11) -> 
M35: =$B$11 -> 0 | N35: 0
M36: =$A$12 -> 0 | N36: 0
M37: =$A$12 -> 0 | N37: =$C$12/($B$12-$A$12) -> 
M38: =$B$12 -> 0 | N38: =$C$12/($B$12-$A$12) -> 
M39: =$B$12 -> 0 | N39: 0
M40: =$A$13 -> 0 | N40: 0
M41: =$A$13 -> 0 | N41: =$C$13/($B$13-$A$13) -> 
M42: =$B$13 -> 0 | N42: =$C$13/($B$13-$A$13) -> 
M43: =$B$13 -> 0 | N43: 0

Sheet Goodness of fit
A1: Goodness of fit | E1: Nul-hypotese: | G1: Den observerede stikprøve stammer fra den forventede fordeling
A2: Fra | B2: Til | C2: Obs. Fordeling | D2: Forventet fordeling | E2: Signifikans niveau: | F2: 0.05
G3: =IF(COUNTIF(C:C,"<5")>0,"Resultatet er usikkert da der er hyppigheder under 5",IF(SUM(C:C)<>SUM(D:D),"Der skal være det samme antal observationer i observeret og forventet fordeling.", IF(SUM(C:C)<50,"Resultatet er usikkert da det samlede antal hyppigheder er under 50",""))) -> Resultatet er usikkert da det samlede antal hyppigheder er under 50
E4: P-værdi: | F4: =CHIDIST(F11,F10) -> 
E5: Konklusion: | F5: =IF(F4="","",IF(F4<F2,"Nul-hypotese forkastet","Nul-hypotese bekræftet")) -> 
E9: Goodness of fit bygger på χ²-fordeling
E10: Frihedsgrader: | F10: =COUNT(C:C)-1 -> -1
E11: χ²-værdi: | F11: =mellemregninger!E2 -> 0
E12: Xmaks: | F12: 16
K20: x

Sheet Histogram-Fit
A1: Histogramfitning til normalfordeling
A2: Interval | K2: =SQRT(K3) -> 0
A3: Fra | B3: Til | C3: Frekvens | D3: µ= | E3: =J3 -> 0 | H3: =(MAX(B:B)-A4)/40 -> 0 | J3: =SUM(J4:J10000) -> 0 | K3: =SUM(K4:K10000) -> 0
D4: σ= | E4: =K2 -> 0 | F4: =$A$4 -> 0 | G4: 0 | H4: =A4 -> 0 | I4: =NORMDIST(H4,$E$3,$E$4,FALSE) ->  | J4: =(A4+B4)/2*C4 -> 0 | K4: =((A4+B4)/2-$J$3)^2*C4 -> 0
F5: =$A$4 -> 0 | G5: =$C$4/($B$4-$A$4) ->  | H5: =H4+$H$3 -> 0 | I5: =NORMDIST(H5,$E$3,$E$4,FALSE) ->  | J5: =(A5+B5)/2*C5 -> 0 | K5: =((A5+B5)/2-$J$3)^2*C5 -> 0
F6: =$B$4 -> 0 | G6: =$C$4/($B$4-$A$4) ->  | H6: =H5+$H$3 -> 0 | J6: 0 | K6: 0
F7: =$B$4 -> 0 | G7: 0 | H7: 0 | J7: 0 | K7: 0
F8: =$A$5 -> 0 | G8: 0 | H8: 0 | J8: 0 | K8: 0
F9: =$A$5 -> 0 | G9: =$C$5/($B$5-$A$5) ->  | H9: 0 | J9: 0 | K9: 0
F10: =$B$5 -> 0 | G10: =$C$5/($B$5-$A$5) ->  | H10: 0 | J10: =(A10+B10)/2*C10 -> 0 | K10: =((A10+B10)/2-$J$3)^2*C10 -> 0
F11: =$B$5 -> 0 | G11: 0 | H11: 0 | J11: 0 | K11: 0
F12: =$A$6 -> 0 | G12: 0 | H12: 0 | J12: 0 | K12: 0
F13: =$A$6 -> 0 | G13: =$C$6/($B$6-$A$6) ->  | H13: 0 | J13: 0 | K13: 0
F14: =$B$6 -> 0 | G14: =$C$6/($B$6-$A$6) ->  | H14: 0 | J14: 0 | K14: 0
F15: =$B$6 -> 0 | G15: 0 | H15: 0 | J15: 0 | K15: 0
F16: =$A$7 -> 0 | G16: 0 | H16: 0 | J16: 0 | K16: 0
F17: =$A$7 -> 0 | G17: =$C$7/($B$7-$A$7) ->  | H17: 0 | J17: 0 | K17: 0
F18: =$B$7 -> 0 | G18: =$C$7/($B$7-$A$7) ->  | H18: 0 | J18: 0 | K18: 0
F19: =$B$7 -> 0 | G19: 0 | H19: 0 | J19: 0 | K19: 0
F20: =$A$8 -> 0 | G20: 0 | H20: 0 | J20: =(A20+B20)/2*C20 -> 0 | K20: =((A20+B20)/2-$J$3)^2*C20 -> 0
F21: =$A$8 -> 0 | G21: =$C$8/($B$8-$A$8) ->  | H21: 0 | J21: 0 | K21: 0
F22: =$B$8 -> 0 | G22: =$C$8/($B$8-$A$8) ->  | H22: 0 | J22: 0 | K22: 0
F23: =$B$8 -> 0 | G23: 0 | H23: 0 | J23: 0 | K23: 0
F24: =$A$9 -> 0 | G24: 0 | H24: 0 | J24: 0 | K24: 0
F25: =$A$9 -> 0 | G25: =$C$9/($B$9-$A$9) ->  | H25: 0 | J25: 0 | K25: 0
F26: =$B$9 -> 0 | G26: =$C$9/($B$9-$A$9) ->  | H26: 0 | J26: 0 | K26: 0
F27: =$B$9 -> 0 | G27: 0 | H27: 0 | J27: 0 | K27: 0
F28: =$A$10 -> 0 | G28: 0 | H28: 0 | J28: 0 | K28: 0
F29: =$A$10 -> 0 | G29: =$C$10/($B$10-$A$10) ->  | H29: 0 | J29: 0 | K29: 0
F30: =$B$10 -> 0 | G30: =$C$10/($B$10-$A$10) ->  | H30: 0 | J30: 0 | K30: 0
F31: =$B$10 -> 0 | G31: 0 | H31: 0 | J31: 0 | K31: 0
F32: =$A$11 -> 0 | G32: 0 | H32: 0 | J32: 0 | K32: 0
F33: =$A$11 -> 0 | G33: =$C$11/($B$11-$A$11) ->  | H33: 0 | J33: 0 | K33: 0
F34: =$B$11 -> 0 | G34: =$C$11/($B$11-$A$11) ->  | H34: 0 | J34: 0 | K34: 0
F35: =$B$11 -> 0 | G35: 0 | H35: 0 | J35: 0 | K35: 0
F36: =$A$12 -> 0 | G36: 0 | H36: 0 | J36: 0 | K36: 0
F37: =$A$12 -> 0 | G37: =$C$12/($B$12-$A$12) ->  | H37: 0 | J37: 0 | K37: 0
F38: =$B$12 -> 0 | G38: =$C$12/($B$12-$A$12) ->  | H38: 0 | J38: 0 | K38: 0
F39: =$B$12 -> 0 | G39: 0 | H39: 0 | J39: 0 | K39: 0
F40: =$A$13 -> 0 | G40: 0 | H40: 0 | J40: 0 | K40: 0
F41: =$A$13 -> 0 | G41: =$C$13/($B$13-$A$13) ->  | H41: 0 | J41: 0 | K41: 0
F42: =$B$13 -> 0 | G42: =$C$13/($B$13-$A$13) ->  | H42: 0 | J42: 0 | K42: 0
F43: =$B$13 -> 0 | G43: 0 | H43: 0 | J43: 0 | K43: 0
F44: =$B$13 -> 0 | G44: 1 | H44: =H43+$H$3 -> 0 | J44: =(A44+B44)/2*C44 -> 0 | K44: =((A44+B44)/2-$J$3)^2*C44 -> 0
J45: 0 | K45: 0
J46: 0 | K46: 0
J47: 0 | K47: 0
J48: 0 | K48: 0
J49: 0 | K49: 0
J50: 0 | K50: 0
J51: 0 | K51: 0
J52: 0 | K52: 0
J53: 0 | K53: 0
J54: 0 | K54: 0
J55: 0 | K55: 0
J56: 0 | K56: 0
J57: 0 | K57: 0
J58: 0 | K58: 0
J59: 0 | K59: 0
J60: 0 | K60: 0
J61: 0 | K61: 0
J62: 0 | K62: 0
J63: 0 | K63: 0
J64: 0 | K64: 0
J65: 0 | K65: 0
J66: 0 | K66: 0
J67: 0 | K67: 0
J68: 0 | K68: 0
J69: 0 | K69: 0
J70: 0 | K70: 0
J71: 0 | K71: 0
J72: 0 | K72: 0
J73: 0 | K73: 0
J74: 0 | K74: 0
J75: 0 | K75: 0
J76: 0 | K76: 0
J77: 0 | K77: 0
J78: 0 | K78: 0
J79: 0 | K79: 0
J80: 0 | K80: 0
J81: 0 | K81: 0
J82: 0 | K82: 0
J83: 0 | K83: 0
J84: 0 | K84: 0
J85: 0 | K85: 0
J86: 0 | K86: 0
J87: 0 | K87: 0
J88: 0 | K88: 0
J89: 0 | K89: 0
J90: 0 | K90: 0
J91: 0 | K91: 0
J92: 0 | K92: 0
J93: 0 | K93: 0
J94: 0 | K94: 0
J95: 0 | K95: 0
J96: 0 | K96: 0
J97: 0 | K97: 0
J98: 0 | K98: 0
J99: 0 | K99: 0
J100: 0 | K100: 0
J101: 0 | K101: 0
J102: 0 | K102: 0
J103: 0 | K103: 0

Sheet Normal-Plot
A1: Grafisk normalfordelingstest
A2: Data | C2: Punkterne skal være lineære for at kunne bekræfte en normalfordeling.
A3: 2 | C3: µ= | D3: =-INTERCEPT(B2:B3,A2:A3)*D4 ->  | E3: (Skæring med x-aksen)
A4: 2 | C4: σ= | D4: =1/SLOPE(B2:B3,A2:A3) ->  | E4: (Invers hældning af linjen)
A5: 4

Sheet Indstillinger
A1: Indstillinger
A3: Beregning af kvartilsæt er ikke præcist defineret. Du kan her vælge mellem to forskellige metoder.
A4: De to metoder giver i de fleste tilfælde det samme, men ikke altid
A6: x | B6: Tællemetoden.
B7: Grafisk aflæsning på Trappediagram

Sheet Hjælp
A1: Hjælp
A2: Indtast observationer på dataarket og indstil evt. intervaller. Tryk kopier for at overføre dataene til de andre faner
A3: Der er ingen grænse for hvor mange observationer der kan indsættes bare flyt graferne for at få
A4: mere plads
A5: Hvis der er kolonner du ikke vil vise kan du ændre bredden så de ikke kan ses.
A7: Grafer
A8: Flyt selv rundt og ændrer størrelsen på diagrammerne, eller slet dem du ikke vil bruge.
A10: Fraktiler
A11: Der kan være to fraktiler samtidigt på grafen. Indtast procentværdien i venstre celle, så beregnes
A12: Fraktilen og markeres på sumkurven/trappediagrammet
A14: Hvis kun frekvenser er kendt, indtastes frekvenser bare under hyppigheder
A15: Hvis der skal laves sammenligning af flere observationssæt i samme diagram
A16: må du bruge de mere specifikke excelark.

Sheet Gemte
A1: Datasæt1 | F1: =COUNT(A:A)-COUNT(A1:A8) -> 0 | G1: Datasæt 2 | L1: =COUNT(G:G)-COUNT(G1:G8) -> 0 | M1: Datasæt 3 | R1: =COUNT(M:M)-COUNT(M1:M8) -> 0 | S1: Datasæt 4 | X1: =COUNT(S:S)-COUNT(S1:S8) -> 0 | Y1: Datasæt 5 | AD1: =COUNT(Y:Y)-COUNT(Y1:Y8) -> 0 | AE1: Datasæt 6 | AJ1: =COUNT(AE:AE)-COUNT(AE1:AE8) -> 0 | AK1: Datasæt 7 | AP1: =COUNT(AK:AK)-COUNT(AK1:AK8) -> 0 | AQ1: Datasæt 8 | AV1: =COUNT(AQ:AQ)-COUNT(AQ1:AQ8) -> 0 | AW1: Datasæt 9 | BB1: =COUNT(AW:AW)-COUNT(AW1:AW8) -> 0 | BC1: Datasæt 10 | BH1: =COUNT(BC:BC)-COUNT(BC1:BC8) -> 0
F2: =COUNT(B:B)-COUNT(B1:B8) -> 0 | L2: =COUNT(H:H)-COUNT(H1:H8) -> 0 | R2: =COUNT(N:N)-COUNT(N1:N8) -> 0 | X2: =COUNT(T:T)-COUNT(T1:T8) -> 0 | AD2: =COUNT(Z:Z)-COUNT(Z1:Z8) -> 0 | AJ2: =COUNT(AF:AF)-COUNT(AF1:AF8) -> 0 | AP2: =COUNT(AL:AL)-COUNT(AL1:AL8) -> 0 | AV2: =COUNT(AR:AR)-COUNT(AR1:AR8) -> 0 | BB2: =COUNT(AX:AX)-COUNT(AX1:AX8) -> 0 | BH2: =COUNT(BD:BD)-COUNT(BD1:BD8) -> 0
F3: =COUNT(D:D)-COUNT(D1:D8) -> 0 | L3: =COUNT(J:J)-COUNT(J1:J8) -> 0 | R3: =COUNT(P:P)-COUNT(P1:P8) -> 0 | X3: =COUNT(V:V)-COUNT(V1:V8) -> 0 | AD3: =COUNT(AB:AB)-COUNT(AB1:AB8) -> 0 | AJ3: =COUNT(AH:AH)-COUNT(AH1:AH8) -> 0 | AP3: =COUNT(AN:AN)-COUNT(AN1:AN8) -> 0 | AV3: =COUNT(AT:AT)-COUNT(AT1:AT8) -> 0 | BB3: =COUNT(AZ:AZ)-COUNT(AZ1:AZ8) -> 0 | BH3: =COUNT(BF:BF)-COUNT(BF1:BF8) -> 0
F4: =MAX(F1:F3) -> 0 | L4: =MAX(L1:L3) -> 0 | R4: =MAX(R1:R3) -> 0 | X4: =MAX(X1:X3) -> 0 | AD4: =MAX(AD1:AD3) -> 0 | AJ4: =MAX(AJ1:AJ3) -> 0 | AP4: =MAX(AP1:AP3) -> 0 | AV4: =MAX(AV1:AV3) -> 0 | BB4: =MAX(BB1:BB3) -> 0 | BH4: =MAX(BH1:BH3) -> 0
A10: data | B10: ugrup | D10: grup | G10: data | H10: ugrup | J10: grup

Sheet mellemregninger
A1: 0 | B1: =IF(F$1>=3,_xlfn.CHISQ.DIST(A2,F$1,FALSE),_xlfn.CHISQ.DIST(A2/2,F$1,FALSE)) ->  | C1: =IF(A1>='Goodness of fit'!$F$11,B1,0) ->  | D1: =CHIDIST(A1,F$1) ->  | F1: ='Goodness of fit'!F10 -> -1 | H1: Hjælp til Goodness of fit χ²-fordeling
A2: ='Goodness of fit'!F$12/1000+A1 -> 0.016 | B2: =_xlfn.CHISQ.DIST(A2,F$1,FALSE) ->  | C2: =IF(A2>='Goodness of fit'!$F$11,B2,0) ->  | D2: =CHIDIST(A2,F$1) ->  | E2: =SUM(E3:E1000) -> 0 | F2: ='Goodness of fit'!$F$11 -> 0 | G2: 0 | H2: Frekvensfunktionen virker kun for Word 2010
A3: ='Goodness of fit'!F$12/1000+A2 -> 0.032 | B3: =_xlfn.CHISQ.DIST(A3,F$1,FALSE) ->  | C3: =IF(A3>='Goodness of fit'!$F$11,B3,0) ->  | E3: =IF('Goodness of fit'!D3>0,('Goodness of fit'!C3-'Goodness of fit'!D3)^2/'Goodness of fit'!D3,"") ->  | F3: =F2 -> 0 | G3: ='Goodness of fit'!$F$4 -> 
A4: ='Goodness of fit'!F$12/1000+A3 -> 0.048 | C4: =IF(A4>='Goodness of fit'!$F$11,B4,0) ->  | E4: =IF('Goodness of fit'!D4>0,('Goodness of fit'!C4-'Goodness of fit'!D4)^2/'Goodness of fit'!D4,"") ->  | F4: 0 | G4: =G3 -> 
A5: ='Goodness of fit'!F$12/1000+A4 -> 0.064 | C5: =IF(A5>='Goodness of fit'!$F$11,B5,0) ->  | E5: =IF('Goodness of fit'!D5>0,('Goodness of fit'!C5-'Goodness of fit'!D5)^2/'Goodness of fit'!D5,"") -> 
A6: ='Goodness of fit'!F$12/1000+A5 -> 0.08 | C6: =IF(A6>='Goodness of fit'!$F$11,B6,0) ->  | E6: =IF('Goodness of fit'!D6>0,('Goodness of fit'!C6-'Goodness of fit'!D6)^2/'Goodness of fit'!D6,"") -> 
A7: ='Goodness of fit'!F$12/1000+A6 -> 0.096 | C7: =IF(A7>='Goodness of fit'!$F$11,B7,0) ->  | E7: =IF('Goodness of fit'!D7>0,('Goodness of fit'!C7-'Goodness of fit'!D7)^2/'Goodness of fit'!D7,"") -> 
A8: ='Goodness of fit'!F$12/1000+A7 -> 0.112 | C8: =IF(A8>='Goodness of fit'!$F$11,B8,0) ->  | E8: =IF('Goodness of fit'!D8>0,('Goodness of fit'!C8-'Goodness of fit'!D8)^2/'Goodness of fit'!D8,"") -> 
A9: ='Goodness of fit'!F$12/1000+A8 -> 0.128 | C9: =IF(A9>='Goodness of fit'!$F$11,B9,0) ->  | E9: =IF('Goodness of fit'!D9>0,('Goodness of fit'!C9-'Goodness of fit'!D9)^2/'Goodness of fit'!D9,"") -> 
A10: ='Goodness of fit'!F$12/1000+A9 -> 0.144 | C10: =IF(A10>='Goodness of fit'!$F$11,B10,0) ->  | E10: =IF('Goodness of fit'!D10>0,('Goodness of fit'!C10-'Goodness of fit'!D10)^2/'Goodness of fit'!D10,"") -> 
A11: ='Goodness of fit'!F$12/1000+A10 -> 0.16 | C11: =IF(A11>='Goodness of fit'!$F$11,B11,0) ->  | E11: =IF('Goodness of fit'!D11>0,('Goodness of fit'!C11-'Goodness of fit'!D11)^2/'Goodness of fit'!D11,"") -> 
A12: ='Goodness of fit'!F$12/1000+A11 -> 0.176 | C12: =IF(A12>='Goodness of fit'!$F$11,B12,0) ->  | E12: =IF('Goodness of fit'!D12>0,('Goodness of fit'!C12-'Goodness of fit'!D12)^2/'Goodness of fit'!D12,"") -> 
A13: ='Goodness of fit'!F$12/1000+A12 -> 0.192 | C13: =IF(A13>='Goodness of fit'!$F$11,B13,0) ->  | E13: =IF('Goodness of fit'!D13>0,('Goodness of fit'!C13-'Goodness of fit'!D13)^2/'Goodness of fit'!D13,"") -> 
A14: ='Goodness of fit'!F$12/1000+A13 -> 0.208 | C14: =IF(A14>='Goodness of fit'!$F$11,B14,0) ->  | E14: =IF('Goodness of fit'!D14>0,('Goodness of fit'!C14-'Goodness of fit'!D14)^2/'Goodness of fit'!D14,"") -> 
A15: ='Goodness of fit'!F$12/1000+A14 -> 0.224 | C15: =IF(A15>='Goodness of fit'!$F$11,B15,0) ->  | E15: =IF('Goodness of fit'!D15>0,('Goodness of fit'!C15-'Goodness of fit'!D15)^2/'Goodness of fit'!D15,"") -> 
A16: ='Goodness of fit'!F$12/1000+A15 -> 0.24 | C16: =IF(A16>='Goodness of fit'!$F$11,B16,0) ->  | E16: =IF('Goodness of fit'!D16>0,('Goodness of fit'!C16-'Goodness of fit'!D16)^2/'Goodness of fit'!D16,"") -> 
A17: ='Goodness of fit'!F$12/1000+A16 -> 0.256 | C17: =IF(A17>='Goodness of fit'!$F$11,B17,0) ->  | E17: =IF('Goodness of fit'!D17>0,('Goodness of fit'!C17-'Goodness of fit'!D17)^2/'Goodness of fit'!D17,"") -> 
A18: ='Goodness of fit'!F$12/1000+A17 -> 0.272 | C18: =IF(A18>='Goodness of fit'!$F$11,B18,0) ->  | E18: =IF('Goodness of fit'!D18>0,('Goodness of fit'!C18-'Goodness of fit'!D18)^2/'Goodness of fit'!D18,"") -> 
A19: ='Goodness of fit'!F$12/1000+A18 -> 0.288 | C19: =IF(A19>='Goodness of fit'!$F$11,B19,0) ->  | E19: =IF('Goodness of fit'!D19>0,('Goodness of fit'!C19-'Goodness of fit'!D19)^2/'Goodness of fit'!D19,"") -> 
A20: ='Goodness of fit'!F$12/1000+A19 -> 0.304 | C20: =IF(A20>='Goodness of fit'!$F$11,B20,0) ->  | E20: =IF('Goodness of fit'!D20>0,('Goodness of fit'!C20-'Goodness of fit'!D20)^2/'Goodness of fit'!D20,"") -> 
A21: ='Goodness of fit'!F$12/1000+A20 -> 0.32 | C21: =IF(A21>='Goodness of fit'!$F$11,B21,0) ->  | E21: =IF('Goodness of fit'!D21>0,('Goodness of fit'!C21-'Goodness of fit'!D21)^2/'Goodness of fit'!D21,"") -> 
A22: ='Goodness of fit'!F$12/1000+A21 -> 0.336 | C22: =IF(A22>='Goodness of fit'!$F$11,B22,0) ->  | E22: =IF('Goodness of fit'!D22>0,('Goodness of fit'!C22-'Goodness of fit'!D22)^2/'Goodness of fit'!D22,"") -> 
A23: ='Goodness of fit'!F$12/1000+A22 -> 0.352 | C23: =IF(A23>='Goodness of fit'!$F$11,B23,0) ->  | E23: =IF('Goodness of fit'!D23>0,('Goodness of fit'!C23-'Goodness of fit'!D23)^2/'Goodness of fit'!D23,"") -> 
A24: ='Goodness of fit'!F$12/1000+A23 -> 0.368 | C24: =IF(A24>='Goodness of fit'!$F$11,B24,0) ->  | E24: =IF('Goodness of fit'!D24>0,('Goodness of fit'!C24-'Goodness of fit'!D24)^2/'Goodness of fit'!D24,"") -> 
A25: ='Goodness of fit'!F$12/1000+A24 -> 0.384 | C25: =IF(A25>='Goodness of fit'!$F$11,B25,0) ->  | E25: =IF('Goodness of fit'!D25>0,('Goodness of fit'!C25-'Goodness of fit'!D25)^2/'Goodness of fit'!D25,"") -> 
A26: ='Goodness of fit'!F$12/1000+A25 -> 0.4 | C26: =IF(A26>='Goodness of fit'!$F$11,B26,0) ->  | E26: =IF('Goodness of fit'!D26>0,('Goodness of fit'!C26-'Goodness of fit'!D26)^2/'Goodness of fit'!D26,"") -> 
A27: ='Goodness of fit'!F$12/1000+A26 -> 0.416 | C27: =IF(A27>='Goodness of fit'!$F$11,B27,0) ->  | E27: =IF('Goodness of fit'!D27>0,('Goodness of fit'!C27-'Goodness of fit'!D27)^2/'Goodness of fit'!D27,"") -> 
A28: ='Goodness of fit'!F$12/1000+A27 -> 0.432 | C28: =IF(A28>='Goodness of fit'!$F$11,B28,0) ->  | E28: =IF('Goodness of fit'!D28>0,('Goodness of fit'!C28-'Goodness of fit'!D28)^2/'Goodness of fit'!D28,"") -> 
A29: ='Goodness of fit'!F$12/1000+A28 -> 0.448 | C29: =IF(A29>='Goodness of fit'!$F$11,B29,0) ->  | E29: =IF('Goodness of fit'!D29>0,('Goodness of fit'!C29-'Goodness of fit'!D29)^2/'Goodness of fit'!D29,"") -> 
A30: ='Goodness of fit'!F$12/1000+A29 -> 0.464 | C30: =IF(A30>='Goodness of fit'!$F$11,B30,0) ->  | E30: =IF('Goodness of fit'!D30>0,('Goodness of fit'!C30-'Goodness of fit'!D30)^2/'Goodness of fit'!D30,"") -> 
A31: ='Goodness of fit'!F$12/1000+A30 -> 0.48 | C31: =IF(A31>='Goodness of fit'!$F$11,B31,0) ->  | E31: =IF('Goodness of fit'!D31>0,('Goodness of fit'!C31-'Goodness of fit'!D31)^2/'Goodness of fit'!D31,"") -> 
A32: ='Goodness of fit'!F$12/1000+A31 -> 0.496 | C32: =IF(A32>='Goodness of fit'!$F$11,B32,0) ->  | E32: =IF('Goodness of fit'!D32>0,('Goodness of fit'!C32-'Goodness of fit'!D32)^2/'Goodness of fit'!D32,"") -> 
A33: ='Goodness of fit'!F$12/1000+A32 -> 0.512 | C33: =IF(A33>='Goodness of fit'!$F$11,B33,0) ->  | E33: =IF('Goodness of fit'!D33>0,('Goodness of fit'!C33-'Goodness of fit'!D33)^2/'Goodness of fit'!D33,"") -> 
A34: ='Goodness of fit'!F$12/1000+A33 -> 0.528 | C34: =IF(A34>='Goodness of fit'!$F$11,B34,0) ->  | E34: =IF('Goodness of fit'!D34>0,('Goodness of fit'!C34-'Goodness of fit'!D34)^2/'Goodness of fit'!D34,"") -> 
A35: ='Goodness of fit'!F$12/1000+A34 -> 0.544 | C35: =IF(A35>='Goodness of fit'!$F$11,B35,0) ->  | E35: =IF('Goodness of fit'!D35>0,('Goodness of fit'!C35-'Goodness of fit'!D35)^2/'Goodness of fit'!D35,"") -> 
A36: ='Goodness of fit'!F$12/1000+A35 -> 0.56 | C36: =IF(A36>='Goodness of fit'!$F$11,B36,0) ->  | E36: =IF('Goodness of fit'!D36>0,('Goodness of fit'!C36-'Goodness of fit'!D36)^2/'Goodness of fit'!D36,"") -> 
A37: ='Goodness of fit'!F$12/1000+A36 -> 0.576 | C37: =IF(A37>='Goodness of fit'!$F$11,B37,0) ->  | E37: =IF('Goodness of fit'!D37>0,('Goodness of fit'!C37-'Goodness of fit'!D37)^2/'Goodness of fit'!D37,"") -> 
A38: ='Goodness of fit'!F$12/1000+A37 -> 0.592 | C38: =IF(A38>='Goodness of fit'!$F$11,B38,0) ->  | E38: =IF('Goodness of fit'!D38>0,('Goodness of fit'!C38-'Goodness of fit'!D38)^2/'Goodness of fit'!D38,"") -> 
A39: ='Goodness of fit'!F$12/1000+A38 -> 0.608 | C39: =IF(A39>='Goodness of fit'!$F$11,B39,0) ->  | E39: =IF('Goodness of fit'!D39>0,('Goodness of fit'!C39-'Goodness of fit'!D39)^2/'Goodness of fit'!D39,"") -> 
A40: ='Goodness of fit'!F$12/1000+A39 -> 0.624 | C40: =IF(A40>='Goodness of fit'!$F$11,B40,0) ->  | E40: =IF('Goodness of fit'!D40>0,('Goodness of fit'!C40-'Goodness of fit'!D40)^2/'Goodness of fit'!D40,"") -> 
A41: ='Goodness of fit'!F$12/1000+A40 -> 0.64 | C41: =IF(A41>='Goodness of fit'!$F$11,B41,0) ->  | E41: =IF('Goodness of fit'!D41>0,('Goodness of fit'!C41-'Goodness of fit'!D41)^2/'Goodness of fit'!D41,"") -> 
A42: ='Goodness of fit'!F$12/1000+A41 -> 0.656 | C42: =IF(A42>='Goodness of fit'!$F$11,B42,0) ->  | E42: =IF('Goodness of fit'!D42>0,('Goodness of fit'!C42-'Goodness of fit'!D42)^2/'Goodness of fit'!D42,"") -> 
A43: ='Goodness of fit'!F$12/1000+A42 -> 0.672 | C43: =IF(A43>='Goodness of fit'!$F$11,B43,0) ->  | E43: =IF('Goodness of fit'!D43>0,('Goodness of fit'!C43-'Goodness of fit'!D43)^2/'Goodness of fit'!D43,"") -> 
A44: ='Goodness of fit'!F$12/1000+A43 -> 0.688 | C44: =IF(A44>='Goodness of fit'!$F$11,B44,0) ->  | E44: =IF('Goodness of fit'!D44>0,('Goodness of fit'!C44-'Goodness of fit'!D44)^2/'Goodness of fit'!D44,"") -> 
A45: ='Goodness of fit'!F$12/1000+A44 -> 0.704 | C45: =IF(A45>='Goodness of fit'!$F$11,B45,0) ->  | E45: =IF('Goodness of fit'!D45>0,('Goodness of fit'!C45-'Goodness of fit'!D45)^2/'Goodness of fit'!D45,"") -> 
A46: ='Goodness of fit'!F$12/1000+A45 -> 0.72 | C46: =IF(A46>='Goodness of fit'!$F$11,B46,0) ->  | E46: =IF('Goodness of fit'!D46>0,('Goodness of fit'!C46-'Goodness of fit'!D46)^2/'Goodness of fit'!D46,"") -> 
A47: ='Goodness of fit'!F$12/1000+A46 -> 0.736 | C47: =IF(A47>='Goodness of fit'!$F$11,B47,0) ->  | E47: =IF('Goodness of fit'!D47>0,('Goodness of fit'!C47-'Goodness of fit'!D47)^2/'Goodness of fit'!D47,"") -> 
A48: ='Goodness of fit'!F$12/1000+A47 -> 0.752 | C48: =IF(A48>='Goodness of fit'!$F$11,B48,0) ->  | E48: =IF('Goodness of fit'!D48>0,('Goodness of fit'!C48-'Goodness of fit'!D48)^2/'Goodness of fit'!D48,"") -> 
A49: ='Goodness of fit'!F$12/1000+A48 -> 0.768 | C49: =IF(A49>='Goodness of fit'!$F$11,B49,0) ->  | E49: =IF('Goodness of fit'!D49>0,('Goodness of fit'!C49-'Goodness of fit'!D49)^2/'Goodness of fit'!D49,"") -> 
A50: ='Goodness of fit'!F$12/1000+A49 -> 0.784 | C50: =IF(A50>='Goodness of fit'!$F$11,B50,0) ->  | E50: =IF('Goodness of fit'!D50>0,('Goodness of fit'!C50-'Goodness of fit'!D50)^2/'Goodness of fit'!D50,"") -> 
A51: ='Goodness of fit'!F$12/1000+A50 -> 0.8 | C51: =IF(A51>='Goodness of fit'!$F$11,B51,0) ->  | E51: =IF('Goodness of fit'!D51>0,('Goodness of fit'!C51-'Goodness of fit'!D51)^2/'Goodness of fit'!D51,"") -> 
A52: ='Goodness of fit'!F$12/1000+A51 -> 0.816 | C52: =IF(A52>='Goodness of fit'!$F$11,B52,0) ->  | E52: =IF('Goodness of fit'!D52>0,('Goodness of fit'!C52-'Goodness of fit'!D52)^2/'Goodness of fit'!D52,"") -> 
A53: ='Goodness of fit'!F$12/1000+A52 -> 0.832 | C53: =IF(A53>='Goodness of fit'!$F$11,B53,0) ->  | E53: =IF('Goodness of fit'!D53>0,('Goodness of fit'!C53-'Goodness of fit'!D53)^2/'Goodness of fit'!D53,"") -> 
A54: ='Goodness of fit'!F$12/1000+A53 -> 0.848 | C54: =IF(A54>='Goodness of fit'!$F$11,B54,0) ->  | E54: =IF('Goodness of fit'!D54>0,('Goodness of fit'!C54-'Goodness of fit'!D54)^2/'Goodness of fit'!D54,"") -> 
A55: ='Goodness of fit'!F$12/1000+A54 -> 0.864 | C55: =IF(A55>='Goodness of fit'!$F$11,B55,0) ->  | E55: =IF('Goodness of fit'!D55>0,('Goodness of fit'!C55-'Goodness of fit'!D55)^2/'Goodness of fit'!D55,"") -> 
A56: ='Goodness of fit'!F$12/1000+A55 -> 0.88 | C56: =IF(A56>='Goodness of fit'!$F$11,B56,0) ->  | E56: =IF('Goodness of fit'!D56>0,('Goodness of fit'!C56-'Goodness of fit'!D56)^2/'Goodness of fit'!D56,"") -> 
A57: ='Goodness of fit'!F$12/1000+A56 -> 0.896 | C57: =IF(A57>='Goodness of fit'!$F$11,B57,0) ->  | E57: =IF('Goodness of fit'!D57>0,('Goodness of fit'!C57-'Goodness of fit'!D57)^2/'Goodness of fit'!D57,"") -> 
A58: ='Goodness of fit'!F$12/1000+A57 -> 0.912 | C58: =IF(A58>='Goodness of fit'!$F$11,B58,0) ->  | E58: =IF('Goodness of fit'!D58>0,('Goodness of fit'!C58-'Goodness of fit'!D58)^2/'Goodness of fit'!D58,"") -> 
A59: ='Goodness of fit'!F$12/1000+A58 -> 0.928 | C59: =IF(A59>='Goodness of fit'!$F$11,B59,0) ->  | E59: =IF('Goodness of fit'!D59>0,('Goodness of fit'!C59-'Goodness of fit'!D59)^2/'Goodness of fit'!D59,"") -> 
A60: ='Goodness of fit'!F$12/1000+A59 -> 0.944 | C60: =IF(A60>='Goodness of fit'!$F$11,B60,0) ->  | E60: =IF('Goodness of fit'!D60>0,('Goodness of fit'!C60-'Goodness of fit'!D60)^2/'Goodness of fit'!D60,"") -> 
A61: ='Goodness of fit'!F$12/1000+A60 -> 0.96 | C61: =IF(A61>='Goodness of fit'!$F$11,B61,0) ->  | E61: =IF('Goodness of fit'!D61>0,('Goodness of fit'!C61-'Goodness of fit'!D61)^2/'Goodness of fit'!D61,"") -> 
A62: ='Goodness of fit'!F$12/1000+A61 -> 0.976 | C62: =IF(A62>='Goodness of fit'!$F$11,B62,0) ->  | E62: =IF('Goodness of fit'!D62>0,('Goodness of fit'!C62-'Goodness of fit'!D62)^2/'Goodness of fit'!D62,"") -> 
A63: ='Goodness of fit'!F$12/1000+A62 -> 0.992 | C63: =IF(A63>='Goodness of fit'!$F$11,B63,0) ->  | E63: =IF('Goodness of fit'!D63>0,('Goodness of fit'!C63-'Goodness of fit'!D63)^2/'Goodness of fit'!D63,"") -> 
A64: ='Goodness of fit'!F$12/1000+A63 -> 1.008 | C64: =IF(A64>='Goodness of fit'!$F$11,B64,0) ->  | E64: =IF('Goodness of fit'!D64>0,('Goodness of fit'!C64-'Goodness of fit'!D64)^2/'Goodness of fit'!D64,"") -> 
A65: ='Goodness of fit'!F$12/1000+A64 -> 1.024 | C65: =IF(A65>='Goodness of fit'!$F$11,B65,0) ->  | E65: =IF('Goodness of fit'!D65>0,('Goodness of fit'!C65-'Goodness of fit'!D65)^2/'Goodness of fit'!D65,"") -> 
A66: ='Goodness of fit'!F$12/1000+A65 -> 1.04 | C66: =IF(A66>='Goodness of fit'!$F$11,B66,0) ->  | D66: =CHIDIST(A66,F$1) ->  | E66: =IF('Goodness of fit'!D66>0,('Goodness of fit'!C66-'Goodness of fit'!D66)^2/'Goodness of fit'!D66,"") -> 
A67: ='Goodness of fit'!F$12/1000+A66 -> 1.056 | B67: =_xlfn.CHISQ.DIST(A67,F$1,FALSE) ->  | C67: =IF(A67>='Goodness of fit'!$F$11,B67,0) ->  | E67: =IF('Goodness of fit'!D67>0,('Goodness of fit'!C67-'Goodness of fit'!D67)^2/'Goodness of fit'!D67,"") -> 
A68: ='Goodness of fit'!F$12/1000+A67 -> 1.072 | C68: =IF(A68>='Goodness of fit'!$F$11,B68,0) ->  | E68: =IF('Goodness of fit'!D68>0,('Goodness of fit'!C68-'Goodness of fit'!D68)^2/'Goodness of fit'!D68,"") -> 
A69: ='Goodness of fit'!F$12/1000+A68 -> 1.088 | C69: =IF(A69>='Goodness of fit'!$F$11,B69,0) ->  | E69: =IF('Goodness of fit'!D69>0,('Goodness of fit'!C69-'Goodness of fit'!D69)^2/'Goodness of fit'!D69,"") -> 
A70: ='Goodness of fit'!F$12/1000+A69 -> 1.104 | C70: =IF(A70>='Goodness of fit'!$F$11,B70,0) ->  | E70: =IF('Goodness of fit'!D70>0,('Goodness of fit'!C70-'Goodness of fit'!D70)^2/'Goodness of fit'!D70,"") -> 
A71: ='Goodness of fit'!F$12/1000+A70 -> 1.12 | C71: =IF(A71>='Goodness of fit'!$F$11,B71,0) ->  | E71: =IF('Goodness of fit'!D71>0,('Goodness of fit'!C71-'Goodness of fit'!D71)^2/'Goodness of fit'!D71,"") -> 
A72: ='Goodness of fit'!F$12/1000+A71 -> 1.136 | C72: =IF(A72>='Goodness of fit'!$F$11,B72,0) ->  | E72: =IF('Goodness of fit'!D72>0,('Goodness of fit'!C72-'Goodness of fit'!D72)^2/'Goodness of fit'!D72,"") -> 
A73: ='Goodness of fit'!F$12/1000+A72 -> 1.152 | C73: =IF(A73>='Goodness of fit'!$F$11,B73,0) ->  | E73: =IF('Goodness of fit'!D73>0,('Goodness of fit'!C73-'Goodness of fit'!D73)^2/'Goodness of fit'!D73,"") -> 
A74: ='Goodness of fit'!F$12/1000+A73 -> 1.168 | C74: =IF(A74>='Goodness of fit'!$F$11,B74,0) ->  | E74: =IF('Goodness of fit'!D74>0,('Goodness of fit'!C74-'Goodness of fit'!D74)^2/'Goodness of fit'!D74,"") -> 
A75: ='Goodness of fit'!F$12/1000+A74 -> 1.184 | C75: =IF(A75>='Goodness of fit'!$F$11,B75,0) ->  | E75: =IF('Goodness of fit'!D75>0,('Goodness of fit'!C75-'Goodness of fit'!D75)^2/'Goodness of fit'!D75,"") -> 
A76: ='Goodness of fit'!F$12/1000+A75 -> 1.2 | C76: =IF(A76>='Goodness of fit'!$F$11,B76,0) ->  | E76: =IF('Goodness of fit'!D76>0,('Goodness of fit'!C76-'Goodness of fit'!D76)^2/'Goodness of fit'!D76,"") -> 
A77: ='Goodness of fit'!F$12/1000+A76 -> 1.216 | C77: =IF(A77>='Goodness of fit'!$F$11,B77,0) ->  | E77: =IF('Goodness of fit'!D77>0,('Goodness of fit'!C77-'Goodness of fit'!D77)^2/'Goodness of fit'!D77,"") -> 
A78: ='Goodness of fit'!F$12/1000+A77 -> 1.232 | C78: =IF(A78>='Goodness of fit'!$F$11,B78,0) ->  | E78: =IF('Goodness of fit'!D78>0,('Goodness of fit'!C78-'Goodness of fit'!D78)^2/'Goodness of fit'!D78,"") -> 
A79: ='Goodness of fit'!F$12/1000+A78 -> 1.248 | C79: =IF(A79>='Goodness of fit'!$F$11,B79,0) ->  | E79: =IF('Goodness of fit'!D79>0,('Goodness of fit'!C79-'Goodness of fit'!D79)^2/'Goodness of fit'!D79,"") -> 
A80: ='Goodness of fit'!F$12/1000+A79 -> 1.264 | C80: =IF(A80>='Goodness of fit'!$F$11,B80,0) ->  | E80: =IF('Goodness of fit'!D80>0,('Goodness of fit'!C80-'Goodness of fit'!D80)^2/'Goodness of fit'!D80,"") -> 
A81: ='Goodness of fit'!F$12/1000+A80 -> 1.28 | C81: =IF(A81>='Goodness of fit'!$F$11,B81,0) ->  | E81: =IF('Goodness of fit'!D81>0,('Goodness of fit'!C81-'Goodness of fit'!D81)^2/'Goodness of fit'!D81,"") -> 
A82: ='Goodness of fit'!F$12/1000+A81 -> 1.296 | C82: =IF(A82>='Goodness of fit'!$F$11,B82,0) ->  | E82: =IF('Goodness of fit'!D82>0,('Goodness of fit'!C82-'Goodness of fit'!D82)^2/'Goodness of fit'!D82,"") -> 
A83: ='Goodness of fit'!F$12/1000+A82 -> 1.312 | C83: =IF(A83>='Goodness of fit'!$F$11,B83,0) ->  | E83: =IF('Goodness of fit'!D83>0,('Goodness of fit'!C83-'Goodness of fit'!D83)^2/'Goodness of fit'!D83,"") -> 
A84: ='Goodness of fit'!F$12/1000+A83 -> 1.328 | C84: =IF(A84>='Goodness of fit'!$F$11,B84,0) ->  | E84: =IF('Goodness of fit'!D84>0,('Goodness of fit'!C84-'Goodness of fit'!D84)^2/'Goodness of fit'!D84,"") -> 
A85: ='Goodness of fit'!F$12/1000+A84 -> 1.344 | C85: =IF(A85>='Goodness of fit'!$F$11,B85,0) ->  | E85: =IF('Goodness of fit'!D85>0,('Goodness of fit'!C85-'Goodness of fit'!D85)^2/'Goodness of fit'!D85,"") -> 
A86: ='Goodness of fit'!F$12/1000+A85 -> 1.36 | C86: =IF(A86>='Goodness of fit'!$F$11,B86,0) ->  | E86: =IF('Goodness of fit'!D86>0,('Goodness of fit'!C86-'Goodness of fit'!D86)^2/'Goodness of fit'!D86,"") -> 
A87: ='Goodness of fit'!F$12/1000+A86 -> 1.376 | C87: =IF(A87>='Goodness of fit'!$F$11,B87,0) ->  | E87: =IF('Goodness of fit'!D87>0,('Goodness of fit'!C87-'Goodness of fit'!D87)^2/'Goodness of fit'!D87,"") -> 
A88: ='Goodness of fit'!F$12/1000+A87 -> 1.392 | C88: =IF(A88>='Goodness of fit'!$F$11,B88,0) ->  | E88: =IF('Goodness of fit'!D88>0,('Goodness of fit'!C88-'Goodness of fit'!D88)^2/'Goodness of fit'!D88,"") -> 
A89: ='Goodness of fit'!F$12/1000+A88 -> 1.408 | C89: =IF(A89>='Goodness of fit'!$F$11,B89,0) ->  | E89: =IF('Goodness of fit'!D89>0,('Goodness of fit'!C89-'Goodness of fit'!D89)^2/'Goodness of fit'!D89,"") -> 
A90: ='Goodness of fit'!F$12/1000+A89 -> 1.424 | C90: =IF(A90>='Goodness of fit'!$F$11,B90,0) ->  | E90: =IF('Goodness of fit'!D90>0,('Goodness of fit'!C90-'Goodness of fit'!D90)^2/'Goodness of fit'!D90,"") -> 
A91: ='Goodness of fit'!F$12/1000+A90 -> 1.44 | C91: =IF(A91>='Goodness of fit'!$F$11,B91,0) ->  | E91: =IF('Goodness of fit'!D91>0,('Goodness of fit'!C91-'Goodness of fit'!D91)^2/'Goodness of fit'!D91,"") -> 
A92: ='Goodness of fit'!F$12/1000+A91 -> 1.456 | C92: =IF(A92>='Goodness of fit'!$F$11,B92,0) ->  | E92: =IF('Goodness of fit'!D92>0,('Goodness of fit'!C92-'Goodness of fit'!D92)^2/'Goodness of fit'!D92,"") -> 
A93: ='Goodness of fit'!F$12/1000+A92 -> 1.472 | C93: =IF(A93>='Goodness of fit'!$F$11,B93,0) ->  | E93: =IF('Goodness of fit'!D93>0,('Goodness of fit'!C93-'Goodness of fit'!D93)^2/'Goodness of fit'!D93,"") -> 
A94: ='Goodness of fit'!F$12/1000+A93 -> 1.488 | C94: =IF(A94>='Goodness of fit'!$F$11,B94,0) ->  | E94: =IF('Goodness of fit'!D94>0,('Goodness of fit'!C94-'Goodness of fit'!D94)^2/'Goodness of fit'!D94,"") -> 
A95: ='Goodness of fit'!F$12/1000+A94 -> 1.504 | C95: =IF(A95>='Goodness of fit'!$F$11,B95,0) ->  | E95: =IF('Goodness of fit'!D95>0,('Goodness of fit'!C95-'Goodness of fit'!D95)^2/'Goodness of fit'!D95,"") -> 
A96: ='Goodness of fit'!F$12/1000+A95 -> 1.52 | C96: =IF(A96>='Goodness of fit'!$F$11,B96,0) ->  | E96: =IF('Goodness of fit'!D96>0,('Goodness of fit'!C96-'Goodness of fit'!D96)^2/'Goodness of fit'!D96,"") -> 
A97: ='Goodness of fit'!F$12/1000+A96 -> 1.536 | C97: =IF(A97>='Goodness of fit'!$F$11,B97,0) ->  | E97: =IF('Goodness of fit'!D97>0,('Goodness of fit'!C97-'Goodness of fit'!D97)^2/'Goodness of fit'!D97,"") -> 
A98: ='Goodness of fit'!F$12/1000+A97 -> 1.552 | C98: =IF(A98>='Goodness of fit'!$F$11,B98,0) ->  | E98: =IF('Goodness of fit'!D98>0,('Goodness of fit'!C98-'Goodness of fit'!D98)^2/'Goodness of fit'!D98,"") -> 
A99: ='Goodness of fit'!F$12/1000+A98 -> 1.568 | C99: =IF(A99>='Goodness of fit'!$F$11,B99,0) ->  | E99: =IF('Goodness of fit'!D99>0,('Goodness of fit'!C99-'Goodness of fit'!D99)^2/'Goodness of fit'!D99,"") -> 
A100: ='Goodness of fit'!F$12/1000+A99 -> 1.584 | C100: =IF(A100>='Goodness of fit'!$F$11,B100,0) ->  | E100: =IF('Goodness of fit'!D100>0,('Goodness of fit'!C100-'Goodness of fit'!D100)^2/'Goodness of fit'!D100,"") -> 
A101: ='Goodness of fit'!F$12/1000+A100 -> 1.6 | C101: =IF(A101>='Goodness of fit'!$F$11,B101,0) ->  | E101: =IF('Goodness of fit'!D101>0,('Goodness of fit'!C101-'Goodness of fit'!D101)^2/'Goodness of fit'!D101,"") -> 
A102: ='Goodness of fit'!F$12/1000+A101 -> 1.616 | C102: =IF(A102>='Goodness of fit'!$F$11,B102,0) ->  | E102: =IF('Goodness of fit'!D102>0,('Goodness of fit'!C102-'Goodness of fit'!D102)^2/'Goodness of fit'!D102,"") -> 
A103: ='Goodness of fit'!F$12/1000+A102 -> 1.632 | C103: =IF(A103>='Goodness of fit'!$F$11,B103,0) ->  | E103: =IF('Goodness of fit'!D103>0,('Goodness of fit'!C103-'Goodness of fit'!D103)^2/'Goodness of fit'!D103,"") -> 
A104: ='Goodness of fit'!F$12/1000+A103 -> 1.648 | C104: =IF(A104>='Goodness of fit'!$F$11,B104,0) ->  | E104: =IF('Goodness of fit'!D104>0,('Goodness of fit'!C104-'Goodness of fit'!D104)^2/'Goodness of fit'!D104,"") -> 
A105: ='Goodness of fit'!F$12/1000+A104 -> 1.664 | C105: =IF(A105>='Goodness of fit'!$F$11,B105,0) ->  | E105: =IF('Goodness of fit'!D105>0,('Goodness of fit'!C105-'Goodness of fit'!D105)^2/'Goodness of fit'!D105,"") -> 
A106: ='Goodness of fit'!F$12/1000+A105 -> 1.68 | C106: =IF(A106>='Goodness of fit'!$F$11,B106,0) ->  | E106: =IF('Goodness of fit'!D106>0,('Goodness of fit'!C106-'Goodness of fit'!D106)^2/'Goodness of fit'!D106,"") -> 
A107: ='Goodness of fit'!F$12/1000+A106 -> 1.696 | C107: =IF(A107>='Goodness of fit'!$F$11,B107,0) ->  | E107: =IF('Goodness of fit'!D107>0,('Goodness of fit'!C107-'Goodness of fit'!D107)^2/'Goodness of fit'!D107,"") -> 
A108: ='Goodness of fit'!F$12/1000+A107 -> 1.712 | C108: =IF(A108>='Goodness of fit'!$F$11,B108,0) ->  | E108: =IF('Goodness of fit'!D108>0,('Goodness of fit'!C108-'Goodness of fit'!D108)^2/'Goodness of fit'!D108,"") -> 
A109: ='Goodness of fit'!F$12/1000+A108 -> 1.728 | C109: =IF(A109>='Goodness of fit'!$F$11,B109,0) ->  | E109: =IF('Goodness of fit'!D109>0,('Goodness of fit'!C109-'Goodness of fit'!D109)^2/'Goodness of fit'!D109,"") -> 
A110: ='Goodness of fit'!F$12/1000+A109 -> 1.744 | C110: =IF(A110>='Goodness of fit'!$F$11,B110,0) ->  | E110: =IF('Goodness of fit'!D110>0,('Goodness of fit'!C110-'Goodness of fit'!D110)^2/'Goodness of fit'!D110,"") -> 
A111: ='Goodness of fit'!F$12/1000+A110 -> 1.76 | C111: =IF(A111>='Goodness of fit'!$F$11,B111,0) ->  | E111: =IF('Goodness of fit'!D111>0,('Goodness of fit'!C111-'Goodness of fit'!D111)^2/'Goodness of fit'!D111,"") -> 
A112: ='Goodness of fit'!F$12/1000+A111 -> 1.776 | C112: =IF(A112>='Goodness of fit'!$F$11,B112,0) ->  | E112: =IF('Goodness of fit'!D112>0,('Goodness of fit'!C112-'Goodness of fit'!D112)^2/'Goodness of fit'!D112,"") -> 
A113: ='Goodness of fit'!F$12/1000+A112 -> 1.792 | C113: =IF(A113>='Goodness of fit'!$F$11,B113,0) ->  | E113: =IF('Goodness of fit'!D113>0,('Goodness of fit'!C113-'Goodness of fit'!D113)^2/'Goodness of fit'!D113,"") -> 
A114: ='Goodness of fit'!F$12/1000+A113 -> 1.808 | C114: =IF(A114>='Goodness of fit'!$F$11,B114,0) ->  | E114: =IF('Goodness of fit'!D114>0,('Goodness of fit'!C114-'Goodness of fit'!D114)^2/'Goodness of fit'!D114,"") -> 
A115: ='Goodness of fit'!F$12/1000+A114 -> 1.824 | C115: =IF(A115>='Goodness of fit'!$F$11,B115,0) ->  | E115: =IF('Goodness of fit'!D115>0,('Goodness of fit'!C115-'Goodness of fit'!D115)^2/'Goodness of fit'!D115,"") -> 
A116: ='Goodness of fit'!F$12/1000+A115 -> 1.84 | C116: =IF(A116>='Goodness of fit'!$F$11,B116,0) ->  | E116: =IF('Goodness of fit'!D116>0,('Goodness of fit'!C116-'Goodness of fit'!D116)^2/'Goodness of fit'!D116,"") -> 
A117: ='Goodness of fit'!F$12/1000+A116 -> 1.856 | C117: =IF(A117>='Goodness of fit'!$F$11,B117,0) ->  | E117: =IF('Goodness of fit'!D117>0,('Goodness of fit'!C117-'Goodness of fit'!D117)^2/'Goodness of fit'!D117,"") -> 
A118: ='Goodness of fit'!F$12/1000+A117 -> 1.872 | C118: =IF(A118>='Goodness of fit'!$F$11,B118,0) ->  | E118: =IF('Goodness of fit'!D118>0,('Goodness of fit'!C118-'Goodness of fit'!D118)^2/'Goodness of fit'!D118,"") -> 
A119: ='Goodness of fit'!F$12/1000+A118 -> 1.888 | C119: =IF(A119>='Goodness of fit'!$F$11,B119,0) ->  | E119: =IF('Goodness of fit'!D119>0,('Goodness of fit'!C119-'Goodness of fit'!D119)^2/'Goodness of fit'!D119,"") -> 
A120: ='Goodness of fit'!F$12/1000+A119 -> 1.904 | C120: =IF(A120>='Goodness of fit'!$F$11,B120,0) ->  | E120: =IF('Goodness of fit'!D120>0,('Goodness of fit'!C120-'Goodness of fit'!D120)^2/'Goodness of fit'!D120,"") -> 
A121: ='Goodness of fit'!F$12/1000+A120 -> 1.92 | C121: =IF(A121>='Goodness of fit'!$F$11,B121,0) ->  | E121: =IF('Goodness of fit'!D121>0,('Goodness of fit'!C121-'Goodness of fit'!D121)^2/'Goodness of fit'!D121,"") -> 
A122: ='Goodness of fit'!F$12/1000+A121 -> 1.936 | C122: =IF(A122>='Goodness of fit'!$F$11,B122,0) ->  | E122: =IF('Goodness of fit'!D122>0,('Goodness of fit'!C122-'Goodness of fit'!D122)^2/'Goodness of fit'!D122,"") -> 
A123: ='Goodness of fit'!F$12/1000+A122 -> 1.952 | C123: =IF(A123>='Goodness of fit'!$F$11,B123,0) ->  | E123: =IF('Goodness of fit'!D123>0,('Goodness of fit'!C123-'Goodness of fit'!D123)^2/'Goodness of fit'!D123,"") -> 
A124: ='Goodness of fit'!F$12/1000+A123 -> 1.968 | C124: =IF(A124>='Goodness of fit'!$F$11,B124,0) ->  | E124: =IF('Goodness of fit'!D124>0,('Goodness of fit'!C124-'Goodness of fit'!D124)^2/'Goodness of fit'!D124,"") -> 
A125: ='Goodness of fit'!F$12/1000+A124 -> 1.984 | C125: =IF(A125>='Goodness of fit'!$F$11,B125,0) ->  | E125: =IF('Goodness of fit'!D125>0,('Goodness of fit'!C125-'Goodness of fit'!D125)^2/'Goodness of fit'!D125,"") -> 
A126: ='Goodness of fit'!F$12/1000+A125 -> 2 | C126: =IF(A126>='Goodness of fit'!$F$11,B126,0) ->  | E126: =IF('Goodness of fit'!D126>0,('Goodness of fit'!C126-'Goodness of fit'!D126)^2/'Goodness of fit'!D126,"") -> 
A127: ='Goodness of fit'!F$12/1000+A126 -> 2.016 | C127: =IF(A127>='Goodness of fit'!$F$11,B127,0) ->  | E127: =IF('Goodness of fit'!D127>0,('Goodness of fit'!C127-'Goodness of fit'!D127)^2/'Goodness of fit'!D127,"") -> 
A128: ='Goodness of fit'!F$12/1000+A127 -> 2.032 | C128: =IF(A128>='Goodness of fit'!$F$11,B128,0) ->  | E128: =IF('Goodness of fit'!D128>0,('Goodness of fit'!C128-'Goodness of fit'!D128)^2/'Goodness of fit'!D128,"") -> 
A129: ='Goodness of fit'!F$12/1000+A128 -> 2.048 | C129: =IF(A129>='Goodness of fit'!$F$11,B129,0) ->  | E129: =IF('Goodness of fit'!D129>0,('Goodness of fit'!C129-'Goodness of fit'!D129)^2/'Goodness of fit'!D129,"") -> 
A130: ='Goodness of fit'!F$12/1000+A129 -> 2.064 | C130: =IF(A130>='Goodness of fit'!$F$11,B130,0) ->  | D130: =CHIDIST(A130,F$1) ->  | E130: =IF('Goodness of fit'!D130>0,('Goodness of fit'!C130-'Goodness of fit'!D130)^2/'Goodness of fit'!D130,"") -> 
A131: ='Goodness of fit'!F$12/1000+A130 -> 2.08 | B131: =_xlfn.CHISQ.DIST(A131,F$1,FALSE) ->  | C131: =IF(A131>='Goodness of fit'!$F$11,B131,0) ->  | E131: =IF('Goodness of fit'!D131>0,('Goodness of fit'!C131-'Goodness of fit'!D131)^2/'Goodness of fit'!D131,"") -> 
A132: ='Goodness of fit'!F$12/1000+A131 -> 2.096 | C132: =IF(A132>='Goodness of fit'!$F$11,B132,0) ->  | E132: =IF('Goodness of fit'!D132>0,('Goodness of fit'!C132-'Goodness of fit'!D132)^2/'Goodness of fit'!D132,"") -> 
A133: ='Goodness of fit'!F$12/1000+A132 -> 2.112 | C133: =IF(A133>='Goodness of fit'!$F$11,B133,0) ->  | E133: =IF('Goodness of fit'!D133>0,('Goodness of fit'!C133-'Goodness of fit'!D133)^2/'Goodness of fit'!D133,"") -> 
A134: ='Goodness of fit'!F$12/1000+A133 -> 2.128 | C134: =IF(A134>='Goodness of fit'!$F$11,B134,0) ->  | E134: =IF('Goodness of fit'!D134>0,('Goodness of fit'!C134-'Goodness of fit'!D134)^2/'Goodness of fit'!D134,"") -> 
A135: ='Goodness of fit'!F$12/1000+A134 -> 2.144 | C135: =IF(A135>='Goodness of fit'!$F$11,B135,0) ->  | E135: =IF('Goodness of fit'!D135>0,('Goodness of fit'!C135-'Goodness of fit'!D135)^2/'Goodness of fit'!D135,"") -> 
A136: ='Goodness of fit'!F$12/1000+A135 -> 2.16 | C136: =IF(A136>='Goodness of fit'!$F$11,B136,0) ->  | E136: =IF('Goodness of fit'!D136>0,('Goodness of fit'!C136-'Goodness of fit'!D136)^2/'Goodness of fit'!D136,"") -> 
A137: ='Goodness of fit'!F$12/1000+A136 -> 2.176 | C137: =IF(A137>='Goodness of fit'!$F$11,B137,0) ->  | E137: =IF('Goodness of fit'!D137>0,('Goodness of fit'!C137-'Goodness of fit'!D137)^2/'Goodness of fit'!D137,"") -> 
A138: ='Goodness of fit'!F$12/1000+A137 -> 2.192 | C138: =IF(A138>='Goodness of fit'!$F$11,B138,0) ->  | E138: =IF('Goodness of fit'!D138>0,('Goodness of fit'!C138-'Goodness of fit'!D138)^2/'Goodness of fit'!D138,"") -> 
A139: ='Goodness of fit'!F$12/1000+A138 -> 2.208 | C139: =IF(A139>='Goodness of fit'!$F$11,B139,0) ->  | E139: =IF('Goodness of fit'!D139>0,('Goodness of fit'!C139-'Goodness of fit'!D139)^2/'Goodness of fit'!D139,"") -> 
A140: ='Goodness of fit'!F$12/1000+A139 -> 2.224 | C140: =IF(A140>='Goodness of fit'!$F$11,B140,0) ->  | E140: =IF('Goodness of fit'!D140>0,('Goodness of fit'!C140-'Goodness of fit'!D140)^2/'Goodness of fit'!D140,"") -> 
A141: ='Goodness of fit'!F$12/1000+A140 -> 2.24 | C141: =IF(A141>='Goodness of fit'!$F$11,B141,0) ->  | E141: =IF('Goodness of fit'!D141>0,('Goodness of fit'!C141-'Goodness of fit'!D141)^2/'Goodness of fit'!D141,"") -> 
A142: ='Goodness of fit'!F$12/1000+A141 -> 2.256 | C142: =IF(A142>='Goodness of fit'!$F$11,B142,0) ->  | E142: =IF('Goodness of fit'!D142>0,('Goodness of fit'!C142-'Goodness of fit'!D142)^2/'Goodness of fit'!D142,"") -> 
A143: ='Goodness of fit'!F$12/1000+A142 -> 2.272 | C143: =IF(A143>='Goodness of fit'!$F$11,B143,0) ->  | E143: =IF('Goodness of fit'!D143>0,('Goodness of fit'!C143-'Goodness of fit'!D143)^2/'Goodness of fit'!D143,"") -> 
A144: ='Goodness of fit'!F$12/1000+A143 -> 2.288 | C144: =IF(A144>='Goodness of fit'!$F$11,B144,0) ->  | E144: =IF('Goodness of fit'!D144>0,('Goodness of fit'!C144-'Goodness of fit'!D144)^2/'Goodness of fit'!D144,"") -> 
A145: ='Goodness of fit'!F$12/1000+A144 -> 2.304 | C145: =IF(A145>='Goodness of fit'!$F$11,B145,0) ->  | E145: =IF('Goodness of fit'!D145>0,('Goodness of fit'!C145-'Goodness of fit'!D145)^2/'Goodness of fit'!D145,"") -> 
A146: ='Goodness of fit'!F$12/1000+A145 -> 2.32 | C146: =IF(A146>='Goodness of fit'!$F$11,B146,0) ->  | E146: =IF('Goodness of fit'!D146>0,('Goodness of fit'!C146-'Goodness of fit'!D146)^2/'Goodness of fit'!D146,"") -> 
A147: ='Goodness of fit'!F$12/1000+A146 -> 2.336 | C147: =IF(A147>='Goodness of fit'!$F$11,B147,0) ->  | E147: =IF('Goodness of fit'!D147>0,('Goodness of fit'!C147-'Goodness of fit'!D147)^2/'Goodness of fit'!D147,"") -> 
A148: ='Goodness of fit'!F$12/1000+A147 -> 2.352 | C148: =IF(A148>='Goodness of fit'!$F$11,B148,0) ->  | E148: =IF('Goodness of fit'!D148>0,('Goodness of fit'!C148-'Goodness of fit'!D148)^2/'Goodness of fit'!D148,"") -> 
A149: ='Goodness of fit'!F$12/1000+A148 -> 2.368 | C149: =IF(A149>='Goodness of fit'!$F$11,B149,0) ->  | E149: =IF('Goodness of fit'!D149>0,('Goodness of fit'!C149-'Goodness of fit'!D149)^2/'Goodness of fit'!D149,"") -> 
A150: ='Goodness of fit'!F$12/1000+A149 -> 2.384 | C150: =IF(A150>='Goodness of fit'!$F$11,B150,0) ->  | E150: =IF('Goodness of fit'!D150>0,('Goodness of fit'!C150-'Goodness of fit'!D150)^2/'Goodness of fit'!D150,"") -> 
A151: ='Goodness of fit'!F$12/1000+A150 -> 2.4 | C151: =IF(A151>='Goodness of fit'!$F$11,B151,0) ->  | E151: =IF('Goodness of fit'!D151>0,('Goodness of fit'!C151-'Goodness of fit'!D151)^2/'Goodness of fit'!D151,"") -> 
A152: ='Goodness of fit'!F$12/1000+A151 -> 2.416 | C152: =IF(A152>='Goodness of fit'!$F$11,B152,0) ->  | E152: =IF('Goodness of fit'!D152>0,('Goodness of fit'!C152-'Goodness of fit'!D152)^2/'Goodness of fit'!D152,"") -> 
A153: ='Goodness of fit'!F$12/1000+A152 -> 2.432 | C153: =IF(A153>='Goodness of fit'!$F$11,B153,0) ->  | E153: =IF('Goodness of fit'!D153>0,('Goodness of fit'!C153-'Goodness of fit'!D153)^2/'Goodness of fit'!D153,"") -> 
A154: ='Goodness of fit'!F$12/1000+A153 -> 2.448 | C154: =IF(A154>='Goodness of fit'!$F$11,B154,0) ->  | E154: =IF('Goodness of fit'!D154>0,('Goodness of fit'!C154-'Goodness of fit'!D154)^2/'Goodness of fit'!D154,"") -> 
A155: ='Goodness of fit'!F$12/1000+A154 -> 2.464 | C155: =IF(A155>='Goodness of fit'!$F$11,B155,0) ->  | E155: =IF('Goodness of fit'!D155>0,('Goodness of fit'!C155-'Goodness of fit'!D155)^2/'Goodness of fit'!D155,"") -> 
A156: ='Goodness of fit'!F$12/1000+A155 -> 2.48 | C156: =IF(A156>='Goodness of fit'!$F$11,B156,0) ->  | E156: =IF('Goodness of fit'!D156>0,('Goodness of fit'!C156-'Goodness of fit'!D156)^2/'Goodness of fit'!D156,"") -> 
A157: ='Goodness of fit'!F$12/1000+A156 -> 2.496 | C157: =IF(A157>='Goodness of fit'!$F$11,B157,0) ->  | E157: =IF('Goodness of fit'!D157>0,('Goodness of fit'!C157-'Goodness of fit'!D157)^2/'Goodness of fit'!D157,"") -> 
A158: ='Goodness of fit'!F$12/1000+A157 -> 2.512 | C158: =IF(A158>='Goodness of fit'!$F$11,B158,0) ->  | E158: =IF('Goodness of fit'!D158>0,('Goodness of fit'!C158-'Goodness of fit'!D158)^2/'Goodness of fit'!D158,"") -> 
A159: ='Goodness of fit'!F$12/1000+A158 -> 2.528 | C159: =IF(A159>='Goodness of fit'!$F$11,B159,0) ->  | E159: =IF('Goodness of fit'!D159>0,('Goodness of fit'!C159-'Goodness of fit'!D159)^2/'Goodness of fit'!D159,"") -> 
A160: ='Goodness of fit'!F$12/1000+A159 -> 2.544 | C160: =IF(A160>='Goodness of fit'!$F$11,B160,0) ->  | E160: =IF('Goodness of fit'!D160>0,('Goodness of fit'!C160-'Goodness of fit'!D160)^2/'Goodness of fit'!D160,"") -> 
A161: ='Goodness of fit'!F$12/1000+A160 -> 2.56 | C161: =IF(A161>='Goodness of fit'!$F$11,B161,0) ->  | E161: =IF('Goodness of fit'!D161>0,('Goodness of fit'!C161-'Goodness of fit'!D161)^2/'Goodness of fit'!D161,"") -> 
A162: ='Goodness of fit'!F$12/1000+A161 -> 2.576 | C162: =IF(A162>='Goodness of fit'!$F$11,B162,0) ->  | E162: =IF('Goodness of fit'!D162>0,('Goodness of fit'!C162-'Goodness of fit'!D162)^2/'Goodness of fit'!D162,"") -> 
A163: ='Goodness of fit'!F$12/1000+A162 -> 2.592 | C163: =IF(A163>='Goodness of fit'!$F$11,B163,0) ->  | E163: =IF('Goodness of fit'!D163>0,('Goodness of fit'!C163-'Goodness of fit'!D163)^2/'Goodness of fit'!D163,"") -> 
A164: ='Goodness of fit'!F$12/1000+A163 -> 2.608 | C164: =IF(A164>='Goodness of fit'!$F$11,B164,0) ->  | E164: =IF('Goodness of fit'!D164>0,('Goodness of fit'!C164-'Goodness of fit'!D164)^2/'Goodness of fit'!D164,"") -> 
A165: ='Goodness of fit'!F$12/1000+A164 -> 2.624 | C165: =IF(A165>='Goodness of fit'!$F$11,B165,0) ->  | E165: =IF('Goodness of fit'!D165>0,('Goodness of fit'!C165-'Goodness of fit'!D165)^2/'Goodness of fit'!D165,"") -> 
A166: ='Goodness of fit'!F$12/1000+A165 -> 2.64 | C166: =IF(A166>='Goodness of fit'!$F$11,B166,0) ->  | E166: =IF('Goodness of fit'!D166>0,('Goodness of fit'!C166-'Goodness of fit'!D166)^2/'Goodness of fit'!D166,"") -> 
A167: ='Goodness of fit'!F$12/1000+A166 -> 2.656 | C167: =IF(A167>='Goodness of fit'!$F$11,B167,0) ->  | E167: =IF('Goodness of fit'!D167>0,('Goodness of fit'!C167-'Goodness of fit'!D167)^2/'Goodness of fit'!D167,"") -> 
A168: ='Goodness of fit'!F$12/1000+A167 -> 2.672 | C168: =IF(A168>='Goodness of fit'!$F$11,B168,0) ->  | E168: =IF('Goodness of fit'!D168>0,('Goodness of fit'!C168-'Goodness of fit'!D168)^2/'Goodness of fit'!D168,"") -> 
A169: ='Goodness of fit'!F$12/1000+A168 -> 2.688 | C169: =IF(A169>='Goodness of fit'!$F$11,B169,0) ->  | E169: =IF('Goodness of fit'!D169>0,('Goodness of fit'!C169-'Goodness of fit'!D169)^2/'Goodness of fit'!D169,"") -> 
A170: ='Goodness of fit'!F$12/1000+A169 -> 2.704 | C170: =IF(A170>='Goodness of fit'!$F$11,B170,0) ->  | E170: =IF('Goodness of fit'!D170>0,('Goodness of fit'!C170-'Goodness of fit'!D170)^2/'Goodness of fit'!D170,"") -> 
A171: ='Goodness of fit'!F$12/1000+A170 -> 2.72 | C171: =IF(A171>='Goodness of fit'!$F$11,B171,0) ->  | E171: =IF('Goodness of fit'!D171>0,('Goodness of fit'!C171-'Goodness of fit'!D171)^2/'Goodness of fit'!D171,"") -> 
A172: ='Goodness of fit'!F$12/1000+A171 -> 2.736 | C172: =IF(A172>='Goodness of fit'!$F$11,B172,0) ->  | E172: =IF('Goodness of fit'!D172>0,('Goodness of fit'!C172-'Goodness of fit'!D172)^2/'Goodness of fit'!D172,"") -> 
A173: ='Goodness of fit'!F$12/1000+A172 -> 2.752 | C173: =IF(A173>='Goodness of fit'!$F$11,B173,0) ->  | E173: =IF('Goodness of fit'!D173>0,('Goodness of fit'!C173-'Goodness of fit'!D173)^2/'Goodness of fit'!D173,"") -> 
A174: ='Goodness of fit'!F$12/1000+A173 -> 2.768 | C174: =IF(A174>='Goodness of fit'!$F$11,B174,0) ->  | E174: =IF('Goodness of fit'!D174>0,('Goodness of fit'!C174-'Goodness of fit'!D174)^2/'Goodness of fit'!D174,"") -> 
A175: ='Goodness of fit'!F$12/1000+A174 -> 2.784 | C175: =IF(A175>='Goodness of fit'!$F$11,B175,0) ->  | E175: =IF('Goodness of fit'!D175>0,('Goodness of fit'!C175-'Goodness of fit'!D175)^2/'Goodness of fit'!D175,"") -> 
A176: ='Goodness of fit'!F$12/1000+A175 -> 2.8 | C176: =IF(A176>='Goodness of fit'!$F$11,B176,0) ->  | E176: =IF('Goodness of fit'!D176>0,('Goodness of fit'!C176-'Goodness of fit'!D176)^2/'Goodness of fit'!D176,"") -> 
A177: ='Goodness of fit'!F$12/1000+A176 -> 2.816 | C177: =IF(A177>='Goodness of fit'!$F$11,B177,0) ->  | E177: =IF('Goodness of fit'!D177>0,('Goodness of fit'!C177-'Goodness of fit'!D177)^2/'Goodness of fit'!D177,"") -> 
A178: ='Goodness of fit'!F$12/1000+A177 -> 2.832 | C178: =IF(A178>='Goodness of fit'!$F$11,B178,0) ->  | E178: =IF('Goodness of fit'!D178>0,('Goodness of fit'!C178-'Goodness of fit'!D178)^2/'Goodness of fit'!D178,"") -> 
A179: ='Goodness of fit'!F$12/1000+A178 -> 2.848 | C179: =IF(A179>='Goodness of fit'!$F$11,B179,0) ->  | E179: =IF('Goodness of fit'!D179>0,('Goodness of fit'!C179-'Goodness of fit'!D179)^2/'Goodness of fit'!D179,"") -> 
A180: ='Goodness of fit'!F$12/1000+A179 -> 2.864 | C180: =IF(A180>='Goodness of fit'!$F$11,B180,0) ->  | E180: =IF('Goodness of fit'!D180>0,('Goodness of fit'!C180-'Goodness of fit'!D180)^2/'Goodness of fit'!D180,"") -> 
A181: ='Goodness of fit'!F$12/1000+A180 -> 2.88 | C181: =IF(A181>='Goodness of fit'!$F$11,B181,0) ->  | E181: =IF('Goodness of fit'!D181>0,('Goodness of fit'!C181-'Goodness of fit'!D181)^2/'Goodness of fit'!D181,"") -> 
A182: ='Goodness of fit'!F$12/1000+A181 -> 2.896 | C182: =IF(A182>='Goodness of fit'!$F$11,B182,0) ->  | E182: =IF('Goodness of fit'!D182>0,('Goodness of fit'!C182-'Goodness of fit'!D182)^2/'Goodness of fit'!D182,"") -> 
A183: ='Goodness of fit'!F$12/1000+A182 -> 2.912 | C183: =IF(A183>='Goodness of fit'!$F$11,B183,0) ->  | E183: =IF('Goodness of fit'!D183>0,('Goodness of fit'!C183-'Goodness of fit'!D183)^2/'Goodness of fit'!D183,"") -> 
A184: ='Goodness of fit'!F$12/1000+A183 -> 2.928 | C184: =IF(A184>='Goodness of fit'!$F$11,B184,0) ->  | E184: =IF('Goodness of fit'!D184>0,('Goodness of fit'!C184-'Goodness of fit'!D184)^2/'Goodness of fit'!D184,"") -> 
A185: ='Goodness of fit'!F$12/1000+A184 -> 2.944 | C185: =IF(A185>='Goodness of fit'!$F$11,B185,0) ->  | E185: =IF('Goodness of fit'!D185>0,('Goodness of fit'!C185-'Goodness of fit'!D185)^2/'Goodness of fit'!D185,"") -> 
A186: ='Goodness of fit'!F$12/1000+A185 -> 2.96 | C186: =IF(A186>='Goodness of fit'!$F$11,B186,0) ->  | E186: =IF('Goodness of fit'!D186>0,('Goodness of fit'!C186-'Goodness of fit'!D186)^2/'Goodness of fit'!D186,"") -> 
A187: ='Goodness of fit'!F$12/1000+A186 -> 2.976 | C187: =IF(A187>='Goodness of fit'!$F$11,B187,0) ->  | E187: =IF('Goodness of fit'!D187>0,('Goodness of fit'!C187-'Goodness of fit'!D187)^2/'Goodness of fit'!D187,"") -> 
A188: ='Goodness of fit'!F$12/1000+A187 -> 2.992 | C188: =IF(A188>='Goodness of fit'!$F$11,B188,0) ->  | E188: =IF('Goodness of fit'!D188>0,('Goodness of fit'!C188-'Goodness of fit'!D188)^2/'Goodness of fit'!D188,"") -> 
A189: ='Goodness of fit'!F$12/1000+A188 -> 3.008 | C189: =IF(A189>='Goodness of fit'!$F$11,B189,0) ->  | E189: =IF('Goodness of fit'!D189>0,('Goodness of fit'!C189-'Goodness of fit'!D189)^2/'Goodness of fit'!D189,"") -> 
A190: ='Goodness of fit'!F$12/1000+A189 -> 3.024 | C190: =IF(A190>='Goodness of fit'!$F$11,B190,0) ->  | E190: =IF('Goodness of fit'!D190>0,('Goodness of fit'!C190-'Goodness of fit'!D190)^2/'Goodness of fit'!D190,"") -> 
A191: ='Goodness of fit'!F$12/1000+A190 -> 3.04 | C191: =IF(A191>='Goodness of fit'!$F$11,B191,0) ->  | E191: =IF('Goodness of fit'!D191>0,('Goodness of fit'!C191-'Goodness of fit'!D191)^2/'Goodness of fit'!D191,"") -> 
A192: ='Goodness of fit'!F$12/1000+A191 -> 3.056 | C192: =IF(A192>='Goodness of fit'!$F$11,B192,0) ->  | E192: =IF('Goodness of fit'!D192>0,('Goodness of fit'!C192-'Goodness of fit'!D192)^2/'Goodness of fit'!D192,"") -> 
A193: ='Goodness of fit'!F$12/1000+A192 -> 3.072 | C193: =IF(A193>='Goodness of fit'!$F$11,B193,0) ->  | E193: =IF('Goodness of fit'!D193>0,('Goodness of fit'!C193-'Goodness of fit'!D193)^2/'Goodness of fit'!D193,"") -> 
A194: ='Goodness of fit'!F$12/1000+A193 -> 3.088 | C194: =IF(A194>='Goodness of fit'!$F$11,B194,0) ->  | D194: =CHIDIST(A194,F$1) ->  | E194: =IF('Goodness of fit'!D194>0,('Goodness of fit'!C194-'Goodness of fit'!D194)^2/'Goodness of fit'!D194,"") -> 
A195: ='Goodness of fit'!F$12/1000+A194 -> 3.104 | B195: =_xlfn.CHISQ.DIST(A195,F$1,FALSE) ->  | C195: =IF(A195>='Goodness of fit'!$F$11,B195,0) ->  | E195: =IF('Goodness of fit'!D195>0,('Goodness of fit'!C195-'Goodness of fit'!D195)^2/'Goodness of fit'!D195,"") -> 
A196: ='Goodness of fit'!F$12/1000+A195 -> 3.12 | C196: =IF(A196>='Goodness of fit'!$F$11,B196,0) ->  | E196: =IF('Goodness of fit'!D196>0,('Goodness of fit'!C196-'Goodness of fit'!D196)^2/'Goodness of fit'!D196,"") -> 
A197: ='Goodness of fit'!F$12/1000+A196 -> 3.136 | C197: =IF(A197>='Goodness of fit'!$F$11,B197,0) ->  | E197: =IF('Goodness of fit'!D197>0,('Goodness of fit'!C197-'Goodness of fit'!D197)^2/'Goodness of fit'!D197,"") -> 
A198: ='Goodness of fit'!F$12/1000+A197 -> 3.152 | C198: =IF(A198>='Goodness of fit'!$F$11,B198,0) ->  | E198: =IF('Goodness of fit'!D198>0,('Goodness of fit'!C198-'Goodness of fit'!D198)^2/'Goodness of fit'!D198,"") -> 
A199: ='Goodness of fit'!F$12/1000+A198 -> 3.168 | C199: =IF(A199>='Goodness of fit'!$F$11,B199,0) ->  | E199: =IF('Goodness of fit'!D199>0,('Goodness of fit'!C199-'Goodness of fit'!D199)^2/'Goodness of fit'!D199,"") -> 
A200: ='Goodness of fit'!F$12/1000+A199 -> 3.184 | C200: =IF(A200>='Goodness of fit'!$F$11,B200,0) ->  | E200: =IF('Goodness of fit'!D200>0,('Goodness of fit'!C200-'Goodness of fit'!D200)^2/'Goodness of fit'!D200,"") -> 
... 801 more rows
